{"text_format":"1","workbook":"xlsx","n_sheets":6,"sheets":["表紙","自己採点シート","学習自己点検シート ","単位修得状況確認表（共通教育科目，一般学生）","単位修得状況確認表（専門教育科目）","累積グラフ"],"not_rendered":{"charts":9,"images":2,"macros":1,"external_links":0,"defined_names":5,"comments":0,"pivot_tables":0},"unopened":[],"bounds":{"document_bytes":16777216,"sheet_cells":100000,"rows_first":2000,"rows_last":500,"rows_between":2000,"halvings":0,"cell_chars":16384,"cell_head_chars":4096},"cells_cut":0,"cells_raw":0,"read":"whole","date_system":"1900"}

{"sheet":"表紙","index":0,"n_rows":35,"n_cols":2,"rows_kept":35,"cut":false,"hidden":false,"merged":[]}
[]
[]
[]
[]
[]
[]
[]
[]
[]
[]
[]
[null,"鹿児島大学工学部ポートフォリオ"]
[]
[]
[]
[]
[]
[]
[]
[]
[]
[]
[]
[]
[]
[]
[]
[]
[]
[]
[]
[null,"入学年度：平成30年度"]
[null,"学科：化学生命工学科"]
[null,"氏名："]
[null,"学籍番号："]

{"sheet":"自己採点シート","index":1,"n_rows":22,"n_cols":21,"rows_kept":22,"cut":false,"hidden":false,"merged":[[12,2,12,5],[3,10,3,11],[3,19,3,20],[9,2,9,5],[10,2,10,5],[11,2,11,5],[19,2,19,5],[20,2,20,5],[21,2,21,5],[13,2,13,5],[14,2,14,5],[15,2,15,5],[16,2,16,5],[17,2,17,5],[18,2,18,5]]}
[]
[null,"自己採点シート"]
[]
[null,null,null,null,null,null,null,null,null,"学籍番号",null,null,null,null,null,null,null,null,"氏名"]
[]
[null,"■学生のみなさんへ"]
[null,null,"今期受講した科目に関して、以下の項目に対して自己採点をしてください。(１０点満点)"]
[]
[]
[null,null,"項目",null,null,null,"2018年度\n前期","2018年度\n後期","2019年度\n前期","2019年度\n後期","2020年度\n前期","2020年度\n後期","2019年度\n前期","2019年度\n後期","2020年度\n前期","2020年度\n後期","2020年度\n前期","2020年度\n後期","2021年度\n前期","2021年度\n後期","卒業時"]
[null,1,"工学に関しての基礎知識\n（物理・化学・数学・情報など）"]
[null,2,"各工学分野での基礎知識\n（専門科目など）"]
[null,3,"人前での発表能力"]
[null,4,"人と話し合ったり議論する能力"]
[null,5,"チームの一員として取り組める（チームワーク）能力"]
[null,6,"英語、その他外国語による表現力"]
[null,7,"読書、講習会への参加、英会話や情報処理学習など大学以外での学習による自己啓発・生涯学習能力"]
[null,8,"社会性や国際感覚が身についているか。"]
[null,9,"倫理観、責任感が身についているか。"]
[null,10]
[null,11]
[null,12]

{"sheet":"学習自己点検シート ","index":2,"n_rows":68,"n_cols":13,"rows_kept":68,"cut":false,"hidden":false,"merged":[[4,8,4,9],[4,11,4,12],[7,2,7,12]]}
[]
[null,null,null,null,null,null,null,null,null,null,null,"年度","期"]
[null,"学習自己点検シート"]
[]
[null,null,null,null,null,null,null,"学籍番号",null,null,"氏名"]
[]
[null,"■学生のみなさんへ"]
[null,null,"学生生活全般に関して自己点検をお願いしています。今期受講した科目に関して、以下の質問項目に答えてください。面談時、指導教員（アドバイザー）の先生方から回答に対する具体的なアドバイスを受けてください。"]
[]
[]
[null,"■回答項目"]
[]
[null,1,"今期の目標は達成できましたか。"]
[]
[]
[]
[]
[null,2,"講義への取り組みは積極的でしたか。また、積極的に取り組むことができなかった講義は具体的に何ですか。"]
[]
[]
[]
[]
[null,3,"講義毎に勉強方法がつかめていますか。"]
[]
[]
[]
[]
[null,4,"それぞれの講義の理解度は自分の目標に達していますか。理解度が足りないと感じている講義は何ですか。"]
[]
[]
[]
[]
[null,5,"平日（試験勉強以外）１日当たりの勉強時間（平均）はどのくらいですか。勉強時間が足りないと感じている講義は何ですか。"]
[]
[]
[]
[]
[null,6,"アルバイトと勉強は両立できましたか。"]
[]
[]
[]
[]
[null,7,"サークル活動と勉強は両立できましたか。"]
[]
[]
[]
[]
[null,8,"卒業後の進路についてどのように考えていますか。"]
[]
[]
[]
[]
[null,9,"その他、アドバイスが必要なことはありますか。"]
[]
[]
[]
[]
[null,10]
[]
[]
[]
[]
[null,11]
[]
[]
[]
[]
[null,12]

{"sheet":"単位修得状況確認表（共通教育科目，一般学生）","index":3,"n_rows":37,"n_cols":49,"rows_kept":37,"cut":false,"hidden":false,"merged":[[3,27,3,30],[3,31,3,34],[3,35,3,38],[1,0,1,41],[2,0,5,6],[2,7,2,38],[2,39,5,39],[2,40,5,40],[2,41,5,41],[4,7,4,8],[4,9,4,10],[4,11,4,12],[4,13,4,14],[4,37,4,38],[4,15,4,16],[4,17,4,18],[3,7,3,10],[3,11,3,14],[3,15,3,18],[3,19,3,22],[3,23,3,26],[4,35,4,36],[6,0,14,0],[6,1,11,3],[9,4,10,4],[12,1,13,3],[4,25,4,26],[4,27,4,28],[4,29,4,30],[4,31,4,32],[4,33,4,34],[4,19,4,20],[4,21,4,22],[4,23,4,24],[25,35,25,36],[25,37,25,38],[19,1,20,3],[19,40,20,40],[22,0,22,6],[23,1,23,10],[24,39,24,40],[15,0,21,0],[15,1,18,3],[16,4,18,4],[25,15,25,16],[25,17,25,18],[25,19,25,20],[25,21,25,22],[25,23,25,24],[25,31,25,32],[26,17,26,18],[26,19,26,20],[26,21,26,22],[26,23,26,24],[26,25,26,26],[25,33,25,34],[25,27,25,28],[25,29,25,30],[25,25,25,26],[25,0,25,6],[25,7,25,8],[25,9,25,10],[25,11,25,12],[25,13,25,14],[27,35,27,36],[27,37,27,38],[27,27,27,28],[27,29,27,30],[26,35,26,36],[26,37,26,38],[27,31,27,32],[27,33,27,34],[26,27,26,28],[26,29,26,30],[26,31,26,32],[26,33,26,34],[27,15,27,16],[26,0,26,6],[26,7,26,8],[26,9,26,10],[26,11,26,12],[26,13,26,14],[26,15,26,16],[27,0,27,6],[27,7,27,8],[27,9,27,10],[27,11,27,12],[27,13,27,14],[27,25,27,26],[27,17,27,18],[27,19,27,20],[27,21,27,22],[27,23,27,24]]}
[null,null,null,null,null,null,null,null,null,null,null,null,null,null,null,null,null,null,null,null,null,null,null,null,null,null,null,null,null,null,null,null,null,null,null,null,null,null,null,null,null,null,null,null,null,null,null,null,"A"]
["単位修得状況確認表（共通教育科目：一般学生）",null,null,null,null,null,null,null,null,null,null,null,null,null,null,null,null,null,null,null,null,null,null,null,null,null,null,null,null,null,null,null,null,null,null,null,null,null,null,null,null,null,null,null,null,null,null,null,"B"]
["　",null,null,null,null,null,null,"取得単位数およびGP",null,null,null,null,null,null,null,null,null,null,null,null,null,null,null,null,null,null,null,null,null,null,null,null,null,null,null,null,null,null,null,"取得単位数","要修得\n単位数","累積GP",null,null,"当該期修得単位の入力要領（共通教育科目）",null,null,null,"C"]
[null,null,null,null,null,null,null,"　年次",null,null,null,"　年次",null,null,null,"　年次",null,null,null,"　年次",null,null,null,"　年次",null,null,null,"　年次",null,null,null,"　年次",null,null,null,"　年次",null,null,null,null,null,null,null,null,"１．黄色枠に各科目(英語の場合は修得した合計",null,null,null,"D"]
[null,null,null,null,null,null,null,"１期",null,"２期",null,"３期",null,"４期",null,"５期",null,"６期",null,"７期",null,"８期",null,"９期",null,"10期",null,"11期",null,"12期",null,"13期",null,"14期",null,"15期",null,"16期",null,null,null,null,null,null,"　　単位数)の修得単位数を記入する。",null,null,null,"F"]
[null,null,null,null,null,null,null,"単位","合計GP","単位","合計GP","単位","合計GP","単位","合計GP","単位","合計GP","単位","合計GP","単位","合計GP","単位","合計GP","単位","合計GP","単位","合計GP","単位","合計GP","単位","合計GP","単位","合計GP","単位","合計GP","単位","合計GP","単位","合計GP",null,null,null,null,null,"２．オレンジ枠に修得した必修科目・選択必修",null,null,null,"P"]
["必修科目","初年次教育科目",null,null,"初年次セミナーⅠ",null,null,null,null,null,null,null,null,null,null,null,null,null,null,null,null,null,null,null,null,null,null,null,null,null,null,null,null,null,null,null,null,null,null,{"$f":"SUM(H7,J7,L7,N7,P7,R7,T7,V7,X7,Z7,AB7,AD7,AF7,AH7,AJ7,AL7)","v":0},2,null,null,null,"　　科目それぞれの合計単位数を記入する。"]
[null,null,null,null,"初年次セミナーⅡ",null,null,null,null,null,null,null,null,null,null,null,null,null,null,null,null,null,null,null,null,null,null,null,null,null,null,null,null,null,null,null,null,null,null,{"$f":"SUM(H8,J8,L8,N8,P8,R8,T8,V8,X8,Z8,AB8,AD8,AF8,AH8,AJ8,AL8)","v":0},2,null,null,null,"３．灰色枠に受講科目の合計GP（単位数×GP）"]
[null,null,null,null,"大学と地域",null,null,null,null,null,null,null,null,null,null,null,null,null,null,null,null,null,null,null,null,null,null,null,null,null,null,null,null,null,null,null,null,null,null,0,2,null,null,null,"　　を計算し、その値を入力する。"]
[null,null,null,null,"体育・健康","理論",null,null,null,null,null,null,null,null,null,null,null,null,null,null,null,null,null,null,null,null,null,null,null,null,null,null,null,null,null,null,null,null,null,0,1,null,null,null,"　（評価とGPの関係：A=4,B=3,C=2,D=1,F=0,Pは"]
[null,null,null,null,null,"実習",null,null,null,null,null,null,null,null,null,null,null,null,null,null,null,null,null,null,null,null,null,null,null,null,null,null,null,null,null,null,null,null,null,0,1,null,null,null,"　　GPの該当外なので合計GP欄は空欄とする。）"]
[null,null,null,null,"情報活用",null,null,null,null,null,null,null,null,null,null,null,null,null,null,null,null,null,null,null,null,null,null,null,null,null,null,null,null,null,null,null,null,null,null,0,2,null,null,null,"４．取得単位数を要修得単位数と比較して、"]
[null,"ｸﾞﾛｰﾊﾞﾙ教育科目",null,null,"英語",null,null,null,null,null,null,null,null,null,null,null,null,null,null,null,null,null,null,null,null,null,null,null,null,null,null,null,null,null,null,null,null,null,null,0,6,null,null,null,"　　単位取得状況を把握する。"]
[null,null,null,null,"異文化理解",null,null,null,null,null,null,null,null,null,null,null,null,null,null,null,null,null,null,null,null,null,null,null,null,null,null,null,null,null,null,null,null,null,null,0,2]
[null,"必修科目　計",null,null,null,null,null,null,{"$f":"SUM(I7:I14)","v":0},null,{"$f":"SUM(K7:K14)","v":0},null,{"$f":"SUM(M7:M14)","v":0},null,{"$f":"SUM(O7:O14)","v":0},null,{"$f":"SUM(Q7:Q14)","v":0},null,{"$f":"SUM(S7:S14)","v":0},null,{"$f":"SUM(U7:U14)","v":0},null,{"$f":"SUM(W7:W14)","v":0},null,{"$f":"SUM(Y7:Y14)","v":0},null,{"$f":"SUM(AA7:AA14)","v":0},null,{"$f":"SUM(AC7:AC14)","v":0},null,{"$f":"SUM(AE7:AE14)","v":0},null,{"$f":"SUM(AG7:AG14)","v":0},null,{"$f":"SUM(AI7:AI14)","v":0},null,{"$f":"SUM(AK7:AK14)","v":0},null,{"$f":"SUM(AM7:AM14)","v":0},0,18,{"$f":"SUM(I15,K15,M15,O15,Q15,S15,U15,W15,Y15,AA15,AC15,AE15,AG15,AI15,AK15,AM15)","v":0},null,null,"※期をまたがって開講される科目は、成績の出"]
["選択必修科目","教養教育科目",null,null,"人文・社会科学分野","選択科目",null,null,null,null,null,null,null,null,null,null,null,null,null,null,null,null,null,null,null,null,null,null,null,null,null,null,null,null,null,null,null,null,null,0,4,null,null,null,"　された期に記入する。例えば通年の場合、後"]
[null,null,null,null,"自然科学分野","実験科目",null,null,null,null,null,null,null,null,null,null,null,null,null,null,null,null,null,null,null,null,null,null,null,null,null,null,null,null,null,null,null,null,null,0,2,null,null,null,"　期に記入する。"]
[null,null,null,null,null,"選択科目",null,null,null,null,null,null,null,null,null,null,null,null,null,null,null,null,null,null,null,null,null,null,null,null,null,null,null,null,null,null,null,null,null,0,2,null,null,null,"※本表最下部の表の入力方法について"]
[null,null,null,null,null,"基礎教育入門科目",null,null,null,null,null,null,null,null,null,null,null,null,null,null,null,null,null,null,null,null,null,null,null,null,null,null,null,null,null,null,null,null,null,0,2,null,null,null,"　・P評価の単位数は、当該期①の欄に、"]
[null,"教養活用科目",null,null,"統合Ⅰ（課題発見）",null,null,null,null,null,null,null,null,null,null,null,null,null,null,null,null,null,null,null,null,null,null,null,null,null,null,null,null,null,null,null,null,null,null,0,4,null,null,null,"　・F評価の単位数は、当該期②の欄に、"]
[null,null,null,null,"統合Ⅱ（課題解決）",null,null,null,null,null,null,null,null,null,null,null,null,null,null,null,null,null,null,null,null,null,null,null,null,null,null,null,null,null,null,null,null,null,null,0,null,null,null,null,"　・評価F科目の再履修での修得単位数は当該"]
[null,"選択必修科目　計",null,null,null,null,null,null,{"$f":"SUM(I16:I21)","v":0},null,{"$f":"SUM(K16:K21)","v":0},null,{"$f":"SUM(M16:M21)","v":0},null,{"$f":"SUM(O16:O21)","v":0},null,{"$f":"SUM(Q16:Q21)","v":0},null,{"$f":"SUM(S16:S21)","v":0},null,{"$f":"SUM(U16:U21)","v":0},null,{"$f":"SUM(W16:W21)","v":0},null,{"$f":"SUM(Y16:Y21)","v":0},null,{"$f":"SUM(AA16:AA21)","v":0},null,{"$f":"SUM(AC16:AC21)","v":0},null,{"$f":"SUM(AE16:AE21)","v":0},null,{"$f":"SUM(AG16:AG21)","v":0},null,{"$f":"SUM(AI16:AI21)","v":0},null,{"$f":"SUM(AK16:AK21)","v":0},null,{"$f":"SUM(AM16:AM21)","v":0},0,14,{"$f":"SUM(I22,K22,M22,O22,Q22,S22,U22,W22,Y22,AA22,AC22,AE22,AG22,AI22,AK22,AM22)","v":0},null,null,"　　期③の欄に入力する。なお、②には再履修"]
["全科目合計",null,null,null,null,null,null,{"$f":"H15+H22","v":0},{"$f":"I15+I22","v":0},{"$f":"J15+J22","v":0},0,0,0,0,0,0,0,0,0,0,0,0,0,0,0,0,0,0,0,0,0,0,0,0,0,0,0,0,0,0,32,{"$f":"SUM(I23,K23,M23,O23,Q23,S23,U23,W23,Y23,AA23,AC23,AE23,AG23,AI23,AK23,AM23)","v":0},null,null,"　　の科目は含まない。"]
["※","「期を増やす」欄により学年を４年間増やすことが可。",null,null,null,null,null,null,null,null,null,null,null,null,null,null,null,null,null,null,null,null,null,null,null,null,null,null,null,null,null,null,null,null,null,null,null,null,null,null,null,null,null,null,"※評価Fの科目を再履修して単位を修得した場合"]
[null,null,null,null,null,null,null,null,null,null,null,null,null,null,null,null,null,null,null,null,null,null,null,null,null,null,null,null,null,null,null,null,null,null,null,null,null,null,null,null,null,null,null,null,"　の入力方法について"]
["①【共通教育科目】評価Pの単位数",null,null,null,null,null,null,null,null,null,null,null,null,null,null,null,null,null,null,null,null,null,null,null,null,null,null,null,null,null,null,null,null,null,null,null,null,null,null,{"$f":"SUM(H26:AM26)","v":0},null,null,null,null,"　上記1～3の手順で入力する。"]
["②【共通教育科目】不合格（評価F）の単位数",null,null,null,null,null,null,null,null,null,null,null,null,null,null,null,null,null,null,null,null,null,null,null,null,null,null,null,null,null,null,null,null,null,null,null,null,null,null,{"$f":"SUM(H27:AM27)","v":0},null,null,null,null,"※既修得単位（D以上）の科目を再履修して単位を"]
["③【共通教育科目】評価F科目の再履修での修得単位数",null,null,null,null,null,null,null,null,null,null,null,null,null,null,null,null,null,null,null,null,null,null,null,null,null,null,null,null,null,null,null,null,null,null,null,null,null,null,{"$f":"SUM(H28:AM28)","v":0},null,null,null,null,"　修得した場合の入力方法について"]
[null,null,null,null,null,null,null,null,null,null,null,null,null,null,null,null,null,null,null,null,null,null,null,null,null,null,null,null,null,null,null,null,null,null,null,null,null,null,null,null,null,null,null,null,"　今期の分を上記1～3の手順で入力した後、"]
[null,null,null,null,null,null,null,null,null,null,null,null,null,null,null,null,null,null,null,null,null,null,null,null,null,null,null,null,null,null,null,null,null,null,null,null,null,null,null,null,null,null,null,null,"  過去の評価（黄色枠）と合計GP（灰色枠）"]
[null,null,null,null,null,null,null,null,null,null,null,null,null,null,null,null,null,null,null,null,null,null,null,null,null,null,null,null,null,null,null,null,null,null,null,null,null,null,null,null,null,null,null,null,"　を削除し、過去のオレンジ枠の合計修得単位数"]
[null,null,null,null,null,null,null,null,null,null,null,null,null,null,null,null,null,null,null,null,null,null,null,null,null,null,null,null,null,null,null,null,null,null,null,null,null,null,null,null,null,null,null,null,"　から今期再履修で修得した単位数を引いた値を"]
[null,null,null,null,null,null,null,null,null,null,null,null,null,null,null,null,null,null,null,null,null,null,null,null,null,null,null,null,null,null,null,null,null,null,null,null,null,null,null,null,null,null,null,null,"　過去のオレンジ枠の合計修得単位数に再入力する。"]
[]
[null,null,null,null,null,null,null,null,null,null,null,null,null,null,null,null,null,null,null,null,null,null,null,null,null,null,null,null,null,null,null,null,null,null,null,null,null,null,null,null,null,null,null,null,"（補足説明）"]
[null,null,null,null,null,null,null,null,null,null,null,null,null,null,null,null,null,null,null,null,null,null,null,null,null,null,null,null,null,null,null,null,null,null,null,null,null,null,null,null,null,null,null,null,"※留年した場合は「期を増やす」欄で列を増"]
[null,null,null,null,null,null,null,null,null,null,null,null,null,null,null,null,null,null,null,null,null,null,null,null,null,null,null,null,null,null,null,null,null,null,null,null,null,null,null,null,null,null,null,null,"　やす。"]

{"sheet":"単位修得状況確認表（専門教育科目）","index":4,"n_rows":82,"n_cols":47,"rows_kept":82,"cut":false,"hidden":false,"merged":[[3,20,3,23],[3,12,3,15],[3,16,3,19],[4,18,4,19],[14,0,32,0],[35,0,43,0],[33,0,33,3],[6,0,11,0],[3,4,3,7],[4,6,4,7],[4,12,4,13],[4,14,4,15],[4,16,4,17],[35,1,43,1],[79,6,79,7],[79,8,79,9],[79,10,79,11],[79,12,79,13],[79,14,79,15],[7,42,32,42],[35,42,43,42],[46,42,57,42],[60,42,72,42],[79,32,79,33],[79,34,79,35],[77,1,77,10],[46,1,57,1],[60,1,72,1],[6,1,11,1],[79,18,79,19],[75,0,75,3],[77,36,77,37],[73,0,73,3],[76,0,76,3],[79,4,79,5],[12,0,12,3],[14,1,32,1],[80,4,80,5],[80,6,80,7],[80,8,80,9],[80,10,80,11],[80,12,80,13],[80,14,80,15],[80,16,80,17],[4,34,4,35],[4,28,4,29],[4,30,4,31],[80,34,80,35],[79,30,79,31],[80,20,80,21],[80,22,80,23],[80,24,80,25],[80,26,80,27],[80,28,80,29],[80,18,80,19],[80,32,80,33],[4,20,4,21],[4,24,4,25],[4,26,4,27],[4,32,4,33],[4,4,4,5],[1,0,1,38],[2,36,5,36],[3,8,3,11],[4,8,4,9],[4,10,4,11],[2,38,5,38],[2,37,5,37],[79,22,79,23],[79,24,79,25],[79,26,79,27],[79,28,79,29],[79,20,79,21],[79,0,79,3],[79,16,79,17],[2,0,5,1],[44,0,44,3],[46,0,57,0],[58,0,58,3],[60,0,72,0],[2,4,2,35],[3,24,3,27],[3,28,3,31],[3,32,3,35],[4,22,4,23],[80,0,80,3],[51,40,51,41],[52,40,52,41],[53,40,53,41],[54,40,54,41],[70,41,72,41],[81,32,81,33],[81,34,81,35],[81,0,81,3],[81,22,81,23],[81,24,81,25],[81,26,81,27],[81,28,81,29],[81,30,81,31],[81,12,81,13],[81,14,81,15],[81,16,81,17],[81,18,81,19],[81,20,81,21],[81,4,81,5],[81,6,81,7],[81,8,81,9],[81,10,81,11],[80,30,80,31]]}
[null,null,null,null,null,null,null,null,null,null,null,null,null,null,null,null,null,null,null,null,null,null,null,null,null,null,null,null,null,null,null,null,null,null,null,null,null,null,null,null,null,null,null,"A"]
["単位修得状況確認表（専門教育科目）",null,null,null,null,null,null,null,null,null,null,null,null,null,null,null,null,null,null,null,null,null,null,null,null,null,null,null,null,null,null,null,null,null,null,null,null,null,null,null,null,"受講科目の単位入力要領（専門教育科目）",null,"B"]
["区分",null,"授","単","履修科目の評価およびGP",null,null,null,null,null,null,null,null,null,null,null,null,null,null,null,null,null,null,null,null,null,null,null,null,null,null,null,null,null,null,null,"取得単位数","要修得\n単位数","累積GP",null,null,"STEP１",null,"C"]
[null,null,"業"," ","　年次",null,null,null,"　年次",null,null,null,"　年次",null,null,null,"　年次",null,null,null,"　年次",null,null,null,"　年次",null,null,null,"　年次",null,null,null,"　年次",null,null,null,null,null,null,null,null,"当該期に受講した科目の単位を区分ごとに以下の手順で",null,"D"]
[null,null,"科",null,"１期",null,"２期",null,"３期",null,"４期",null,"５期",null,"６期",null,"７期",null,"８期",null,"９期",null,"10期",null,"11期",null,"12期",null,"13期",null,"14期",null,"15期",null,"16期",null,null,null,null,null,null,"入力し、要修得単位数と比較して単位取得状況を把握",null,"F"]
[null,null,"目","位","評価","合計GP","評価","合計GP","評価","合計GP","評価","合計GP","評価","合計GP","評価","合計GP","評価","合計GP","評価","合計GP","評価","合計GP","評価","合計GP","評価","合計GP","評価","合計GP","評価","合計GP","評価","合計GP","評価","合計GP","評価","合計GP",null,null,null,null,null,"する。",null,"P"]
["基礎教育科目","必\n修\n科\n目","微分積分学A I",2]
[null,null,"線形代数学Ⅰ",2,null,null,null,null,null,null,null,null,null,null,null,null,null,null,null,null,null,null,null,null,null,null,null,null,null,null,null,null,null,null,null,null,null,null,null,null,null,"１．黄色枠に受講科目の評価（A,B,C,D,F,P）を入力する。","必\n修\n科\n目",250152511101,{"$f":"C8","v":"線形代数学Ⅰ"}]
[null,null,"物理学基礎A I",2,null,null,null,null,null,null,null,null,null,null,null,null,null,null,null,null,null,null,null,null,null,null,null,null,null,null,null,null,null,null,null,null,null,null,null,null,null,"２．オレンジ枠に合計修得単位数を入力する。",null,250093000001,"物理学基礎A I"]
[null,null,"微分積分学AⅡ",2,null,null,null,null,null,null,null,null,null,null,null,null,null,null,null,null,null,null,null,null,null,null,null,null,null,null,null,null,null,null,null,null,null,null,null,null,null,"３．灰色枠に受講科目の合計GP（単位数×GP）を計算し、",null,250093000003,"微分積分学AⅡ"]
[null,null,"線形代数学Ⅱ",2,null,null,null,null,null,null,null,null,null,null,null,null,null,null,null,null,null,null,null,null,null,null,null,null,null,null,null,null,null,null,null,null,null,null,null,null,null,"    その値を入力する。",null,250093000020,"線形代数学Ⅱ","「Ⅰ」が異なるためヒットせず","有機化学Ⅰ（化） 250093000020"]
[null,null,"物理学基礎AⅡ",2,null,null,null,null,null,null,null,null,null,null,null,null,null,null,null,null,null,null,null,null,null,null,null,null,null,null,null,null,null,null,null,null,null,null,null,null,null,"　（評価とGPの関係：A=4,B=3,C=2,D=1,F=0,PはGPの該当",null,250093000004,"物理学基礎AⅡ"]
["合計",null,null,null,null,{"$f":"SUM(F7:F12)","v":0},null,{"$f":"SUM(H7:H12)","v":0},null,{"$f":"SUM(J7:J12)","v":0},null,{"$f":"SUM(L7:L12)","v":0},null,{"$f":"SUM(N7:N12)","v":0},null,{"$f":"SUM(P7:P12)","v":0},null,{"$f":"SUM(R7:R12)","v":0},null,{"$f":"SUM(T7:T12)","v":0},null,{"$f":"SUM(V7:V12)","v":0},null,{"$f":"SUM(X7:X12)","v":0},null,{"$f":"SUM(Z7:Z12)","v":0},null,{"$f":"SUM(AB7:AB12)","v":0},null,{"$f":"SUM(AD7:AD12)","v":0},null,{"$f":"SUM(AF7:AF12)","v":0},null,{"$f":"SUM(AH7:AH12)","v":0},null,{"$f":"SUM(AJ7:AJ12)","v":0},{"$f":"SUM(E13,G13,I13,K13,M13,O13,Q13,S13,U13,W13,Y13,AA13,AC13,AE13,AG13,AI13)","v":0},12,{"$f":"SUM(F13,H13,J13,L13,N13,P13,R13,T13,V13,X13,Z13,AB13,AD13,AF13,AH13,AJ13)","v":0},null,null,"　　外なので合計GP欄は空欄とする。）",null,250093000006,0]
[null,null,null,null,null,null,null,null,null,null,null,null,null,null,null,null,null,null,null,null,null,null,null,null,null,null,null,null,null,null,null,null,null,null,null,null,null,null,null,null,null,"４．修得単位数を要修得単位数と比較して単位取得状況"]
["専門科目","必\n修\n科\n目","フレッシュマンセミナー",2,null,null,null,null,null,null,null,null,null,null,null,null,null,null,null,null,null,null,null,null,null,null,null,null,null,null,null,null,null,null,null,null,null,null,null,null,null,"    を把握する。",null,250093000007,{"$f":"C15","v":"フレッシュマンセミナー"},"「Ⅰ」が異なるためヒットせず","応用数学Ⅰ（化） 250093000007"]
[null,null,"基礎化学",2,null,null,null,null,null,null,null,null,null,null,null,null,null,null,null,null,null,null,null,null,null,null,null,null,null,null,null,null,null,null,null,null,null,null,null,null,null,null,null,250093000005,"基礎化学"]
[null,null,"有機化学基礎",2,null,null,null,null,null,null,null,null,null,null,null,null,null,null,null,null,null,null,null,null,null,null,null,null,null,null,null,null,null,null,null,null,null,null,null,null,null,"※期をまたがって開講される科目は、成績の出された期に",null,250093000008,"有機化学基礎"]
[null,null,"物理化学基礎",2,null,null,null,null,null,null,null,null,null,null,null,null,null,null,null,null,null,null,null,null,null,null,null,null,null,null,null,null,null,null,null,null,null,null,null,null,null,"  記入する。例えば通年の場合、後期に記入する。",null,250072400001,"物理化学基礎","2件以上ヒット","化学情報分析実習 250072400001\n化学情報分析実習 250093000009"]
[null,null,"物理化学Ⅰ",2,null,null,null,null,null,null,null,null,null,null,null,null,null,null,null,null,null,null,null,null,null,null,null,null,null,null,null,null,null,null,null,null,null,null,null,null,null,"※本表最下部の表の入力方法について",null,251330000001,"物理化学Ⅰ"]
[null,null,"化学工学基礎",2,null,null,null,null,null,null,null,null,null,null,null,null,null,null,null,null,null,null,null,null,null,null,null,null,null,null,null,null,null,null,null,null,null,null,null,null,null,"　・P評価の単位数は当該期①の欄に、",null,250093000011,"化学工学基礎"]
[null,null,"有機化学Ｉ",2,null,null,null,null,null,null,null,null,null,null,null,null,null,null,null,null,null,null,null,null,null,null,null,null,null,null,null,null,null,null,null,null,null,null,null,null,null,"　・F評価の単位数は当該期②の欄に、"]
[null,null,"有機化学Ⅱ",2,null,null,null,null,null,null,null,null,null,null,null,null,null,null,null,null,null,null,null,null,null,null,null,null,null,null,null,null,null,null,null,null,null,null,null,null,null,"　・評価F科目の再履修での修得単位数は当該期③の欄に"]
[null,null,"物理化学Ⅱ",2,null,null,null,null,null,null,null,null,null,null,null,null,null,null,null,null,null,null,null,null,null,null,null,null,null,null,null,null,null,null,null,null,null,null,null,null,null,"　　入力する。なお、②には再履修の科目は含まない。"]
[null,null,"化学生命工学実験",3,null,null,null,null,null,null,null,null,null,null,null,null,null,null,null,null,null,null,null,null,null,null,null,null,null,null,null,null,null,null,null,null,null,null,null,null,null,"※評価Fの科目を再履修して単位を修得した場合の入力方"]
[null,null,"工学英語Ⅰ",2,null,null,null,null,null,null,null,null,null,null,null,null,null,null,null,null,null,null,null,null,null,null,null,null,null,null,null,null,null,null,null,null,null,null,null,null,null,"  法について"]
[null,null,"化学情報分析実習",3,null,null,null,null,null,null,null,null,null,null,null,null,null,null,null,null,null,null,null,null,null,null,null,null,null,null,null,null,null,null,null,null,null,null,null,null,null,"  上記１～３の手順で入力する。"]
[null,null,"化学生命工学セミナーⅠ",2,null,null,null,null,null,null,null,null,null,null,null,null,null,null,null,null,null,null,null,null,null,null,null,null,null,null,null,null,null,null,null,null,null,null,null,null,null,"※既修得単位（D以上）の科目を再履修して単位を"]
[null,null,"工学英語Ⅱ",2,null,null,null,null,null,null,null,null,null,null,null,null,null,null,null,null,null,null,null,null,null,null,null,null,null,null,null,null,null,null,null,null,null,null,null,null,null,"　修得した場合の入力方法について"]
[null,null,"化学生命工学セミナーⅡ",2,null,null,null,null,null,null,null,null,null,null,null,null,null,null,null,null,null,null,null,null,null,null,null,null,null,null,null,null,null,null,null,null,null,null,null,null,null,"　今期の分を上記1～3の手順で入力した後、"]
[null,null,"化学生命工学特別研究Ⅰ",2,null,null,null,null,null,null,null,null,null,null,null,null,null,null,null,null,null,null,null,null,null,null,null,null,null,null,null,null,null,null,null,null,null,null,null,null,null,"  過去の評価（黄色枠）と合計GP（灰色枠）"]
[null,null,"工学倫理",2,null,null,null,null,null,null,null,null,null,null,null,null,null,null,null,null,null,null,null,null,null,null,null,null,null,null,null,null,null,null,null,null,null,null,null,null,null,"　を削除し、過去のオレンジ枠の合計修得単位数"]
[null,null,"化学生命工学特別研究Ⅱ",2,null,null,null,null,null,null,null,null,null,null,null,null,null,null,null,null,null,null,null,null,null,null,null,null,null,null,null,null,null,null,null,null,null,null,null,null,null,"　から今期再履修で修得した単位数を引いた値を"]
[null,null,"卒　　　業　　　論　　　文",6,null,null,null,null,null,null,null,null,null,null,null,null,null,null,null,null,null,null,null,null,null,null,null,null,null,null,null,null,null,null,null,null,null,null,null,null,null,"　過去のオレンジ枠の合計修得単位数に再入力する。"]
["合計",null,null,null,null,{"$f":"SUM(F15:F33)","v":0},null,{"$f":"SUM(H15:H33)","v":0},null,{"$f":"SUM(J15:J33)","v":0},null,{"$f":"SUM(L15:L33)","v":0},null,{"$f":"SUM(N15:N33)","v":0},null,{"$f":"SUM(P15:P33)","v":0},null,{"$f":"SUM(R15:R33)","v":0},null,{"$f":"SUM(T15:T33)","v":0},null,{"$f":"SUM(V15:V33)","v":0},null,{"$f":"SUM(X15:X33)","v":0},null,{"$f":"SUM(Z15:Z33)","v":0},null,{"$f":"SUM(AB15:AB33)","v":0},null,{"$f":"SUM(AD15:AD33)","v":0},null,{"$f":"SUM(AF15:AF33)","v":0},null,{"$f":"SUM(AH15:AH33)","v":0},null,{"$f":"SUM(AJ15:AJ33)","v":0},{"$f":"SUM(E34,G34,I34,K34,M34,O34,Q34,S34,U34,W34,Y34,AA34,AC34,AE34,AG34,AI34)","v":0},44,{"$f":"SUM(F34,H34,J34,L34,N34,P34,R34,T34,V34,X34,Z34,AB34,AD34,AF34,AH34,AJ34)","v":0}]
[null,null,null,null,null,null,null,null,null,null,null,null,null,null,null,null,null,null,null,null,null,null,null,null,null,null,null,null,null,null,null,null,null,null,null,null,null,null,null,null,null,"STEP２"]
["専門科目","選\n択\n科\n目\nＡ\n群\n","情報システム",2,null,null,null,null,null,null,null,null,null,null,null,null,null,null,null,null,null,null,null,null,null,null,null,null,null,null,null,null,null,null,null,null,null,null,null,null,null,"累積GPAの値を成績原簿と一致するかチェックする。","選\n択\n科\n目\nＡ\n群\n",250093000015,{"$f":"C36","v":"情報システム"}]
[null,null,"地球科学基礎",2,null,null,null,null,null,null,null,null,null,null,null,null,null,null,null,null,null,null,null,null,null,null,null,null,null,null,null,null,null,null,null,null,null,null,null,null,null,"区分ごとの単位修得状況の入力が終了した後に、シート",null,250299110001,"地球科学基礎"]
[null,null,"原子力・放射線と環境",2,null,null,null,null,null,null,null,null,null,null,null,null,null,null,null,null,null,null,null,null,null,null,null,null,null,null,null,null,null,null,null,null,null,null,null,null,null,"右下赤枠の「累積GPA」の値が、成績原簿に記載されて",null,250042099101,"原子力・放射線と環境"]
[null,null,"生産工学論",2,null,null,null,null,null,null,null,null,null,null,null,null,null,null,null,null,null,null,null,null,null,null,null,null,null,null,null,null,null,null,null,null,null,null,null,null,null,"いる累積GPAの値と一致しているかチェックし、一致",null,250299200001,"生産工学論"]
[null,null,"エレクトロニクス論",2,null,null,null,null,null,null,null,null,null,null,null,null,null,null,null,null,null,null,null,null,null,null,null,null,null,null,null,null,null,null,null,null,null,null,null,null,null,"していない場合はSTEP１に戻り、入力値に間違いが",null,250228100002,"エレクトロニクス論"]
[null,null,"科学技術論",2,null,null,null,null,null,null,null,null,null,null,null,null,null,null,null,null,null,null,null,null,null,null,null,null,null,null,null,null,null,null,null,null,null,null,null,null,null,"ないか見直し、正しく入力する。",null,250228100006,"科学技術論"]
[null,null,"環境工学論",2,null,null,null,null,null,null,null,null,null,null,null,null,null,null,null,null,null,null,null,null,null,null,null,null,null,null,null,null,null,null,null,null,null,null,null,null,null,null,null,250228100004,"環境工学論"]
[null,null,"材料科学論",2,null,null,null,null,null,null,null,null,null,null,null,null,null,null,null,null,null,null,null,null,null,null,null,null,null,null,null,null,null,null,null,null,null,null,null,null,null,"（補足説明）",null,250228100005,"材料科学論"]
[null,null,"エネルギー工学論",2,null,null,null,null,null,null,null,null,null,null,null,null,null,null,null,null,null,null,null,null,null,null,null,null,null,null,null,null,null,null,null,null,null,null,null,null,null,"※留年した場合は「期を増やす」欄で列を増やす。",null,250228100003,"エネルギー工学論"]
["合計",null,null,null,null,{"$f":"SUM(F36:F44)","v":0},null,{"$f":"SUM(H36:H44)","v":0},null,{"$f":"SUM(J36:J44)","v":0},null,{"$f":"SUM(L36:L44)","v":0},null,{"$f":"SUM(N36:N44)","v":0},null,{"$f":"SUM(P36:P44)","v":0},null,{"$f":"SUM(R36:R44)","v":0},null,{"$f":"SUM(T36:T44)","v":0},null,{"$f":"SUM(V36:V44)","v":0},null,{"$f":"SUM(X36:X44)","v":0},null,{"$f":"SUM(Z36:Z44)","v":0},null,{"$f":"SUM(AB36:AB44)","v":0},null,{"$f":"SUM(AD36:AD44)","v":0},null,{"$f":"SUM(AF36:AF44)","v":0},null,{"$f":"SUM(AH36:AH44)","v":0},null,{"$f":"SUM(AJ36:AJ44)","v":0},{"$f":"SUM(E45,G45,I45,K45,M45,O45,Q45,S45,U45,W45,Y45,AA45,AC45,AE45,AG45,AI45)","v":0},6,{"$f":"SUM(F45,H45,J45,L45,N45,P45,R45,T45,V45,X45,Z45,AB45,AD45,AF45,AH45,AJ45)","v":0},null,null,"※評価Pの科目については、GPおよびGPAの計算に含ま"]
[null,null,null,null,null,null,null,null,null,null,null,null,null,null,null,null,null,null,null,null,null,null,null,null,null,null,null,null,null,null,null,null,null,null,null,null,null,null,null,null,null,"　ない。しかしながら、進級・卒業要件の累積単位数"]
["専門科目","選\n択\n科\n目\nB\n群","生物学概論",2,null,null,null,null,null,null,null,null,null,null,null,null,null,null,null,null,null,null,null,null,null,null,null,null,null,null,null,null,null,null,null,null,null,null,null,null,null,"　には含まれることがあるので、標準履修課程表で確認","選\n択\n科\n目\nＢ\n群",251330000003,{"$f":"C47","v":"生物学概論"}]
[null,null,"量子化学",2,null,null,null,null,null,null,null,null,null,null,null,null,null,null,null,null,null,null,null,null,null,null,null,null,null,null,null,null,null,null,null,null,null,null,null,null,null,"　すること。（インターンシップ等）",null,250227000002,{"$f":"C48","v":"量子化学"}]
[null,null,"生物化学Ⅰ",2,null,null,null,null,null,null,null,null,null,null,null,null,null,null,null,null,null,null,null,null,null,null,null,null,null,null,null,null,null,null,null,null,null,null,null,null,null,"※随意科目については、GPおよびGPAの計算に含まれない。",null,250093000026,{"$f":"C49","v":"生物化学Ⅰ"}]
[null,null,"高分子化学",2,null,null,null,null,null,null,null,null,null,null,null,null,null,null,null,null,null,null,null,null,null,null,null,null,null,null,null,null,null,null,null,null,null,null,null,null,null,"　また、進級・卒業要件にも含まれない。"]
[null,null,"化学生命工学英語",2]
[null,null,"生体分子化学",2]
[null,null,"無機化学",2]
[null,null,"生物化学Ⅱ",2,null,null,null,null,null,null,null,null,null,null,null,null,null,null,null,null,null,null,null,null,null,null,null,null,null,null,null,null,null,null,null,null,null,null,null,null,null,null,null,250093000021,{"$f":"C54","v":"生物化学Ⅱ"}]
[null,null,"化学計測",2,null,null,null,null,null,null,null,null,null,null,null,null,null,null,null,null,null,null,null,null,null,null,null,null,null,null,null,null,null,null,null,null,null,null,null,null,null,null,null,250093000022,"化学計測"]
[null,null,"化学生命プログラミング",2,null,null,null,null,null,null,null,null,null,null,null,null,null,null,null,null,null,null,null,null,null,null,null,null,null,null,null,null,null,null,null,null,null,null,null,null,null,null,null,250093000024,"化学生命プログラミング"]
[null,null,"有機化学Ⅲ",2,null,null,null,null,null,null,null,null,null,null,null,null,null,null,null,null,null,null,null,null,null,null,null,null,null,null,null,null,null,null,null,null,null,null,null,null,null,null,null,250093000027,"有機化学Ⅲ"]
[null,null,"分析化学",2,null,null,null,null,null,null,null,null,null,null,null,null,null,null,null,null,null,null,null,null,null,null,null,null,null,null,null,null,null,null,null,null,null,null,null,null,null,null,null,250093000028,"分析化学"]
["合計",null,null,null,null,{"$f":"SUM(F47:F58)","v":0},null,{"$f":"SUM(H47:H58)","v":0},null,{"$f":"SUM(J47:J58)","v":0},null,{"$f":"SUM(L47:L58)","v":0},null,{"$f":"SUM(N47:N58)","v":0},null,{"$f":"SUM(P47:P58)","v":0},null,{"$f":"SUM(R47:R58)","v":0},null,{"$f":"SUM(T47:T58)","v":0},null,{"$f":"SUM(V47:V58)","v":0},null,{"$f":"SUM(X47:X58)","v":0},null,{"$f":"SUM(Z47:Z58)","v":0},null,{"$f":"SUM(AB47:AB58)","v":0},null,{"$f":"SUM(AD47:AD58)","v":0},null,{"$f":"SUM(AF47:AF58)","v":0},null,{"$f":"SUM(AH47:AH58)","v":0},null,{"$f":"SUM(AJ47:AJ58)","v":0},{"$f":"SUM(E59,G59,I59,K59,M59,O59,Q59,S59,U59,W59,Y59,AA59,AC59,AE59,AG59,AI59)","v":0},16,{"$f":"SUM(F59,H59,J59,L59,N59,P59,R59,T59,V59,X59,Z59,AB59,AD59,AF59,AH59,AJ59)","v":0}]
[]
["専門科目","選\n択\n科\n目\nＣ\n群","化学生命工学キャリアデザイン",2,null,null,null,null,null,null,null,null,null,null,null,null,null,null,null,null,null,null,null,null,null,null,null,null,null,null,null,null,null,null,null,null,null,null,null,null,null,null,"選\n択\n科\n目\nＣ\n群",250093000031,{"$f":"C61","v":"化学生命工学キャリアデザイン"}]
[null,null,"界面科学",2,null,null,null,null,null,null,null,null,null,null,null,null,null,null,null,null,null,null,null,null,null,null,null,null,null,null,null,null,null,null,null,null,null,null,null,null,null,null,null,259752424101,{"$f":"C62","v":"界面科学"}]
[null,null,"量子物理化学",2]
[null,null,"生体分子計測学",2]
[null,null,"分子生物学",2]
[null,null,"医工学概論",2]
[null,null,"反応速度論",2]
[null,null,"機能材料化学",2]
[null,null,"環境化学工学",2,null,null,null,null,null,null,null,null,null,null,null,null,null,null,null,null,null,null,null,null,null,null,null,null,null,null,null,null,null,null,null,null,null,null,null,null,null,null,null,250093000025,{"$f":"C69","v":"環境化学工学"}]
[null,null,"移動現象基礎",2,null,null,null,null,null,null,null,null,null,null,null,null,null,null,null,null,null,null,null,null,null,null,null,null,null,null,null,null,null,null,null,null,null,null,null,null,null,null,null,250227000130,{"$f":"C70","v":"移動現象基礎"}]
[null,null,"微生物学",2,null,null,null,null,null,null,null,null,null,null,null,null,null,null,null,null,null,null,null,null,null,null,null,null,null,null,null,null,null,null,null,null,null,null,null,null,null,null,null,250093000039,{"$f":"C71","v":"微生物学"}]
[null,null,"化学生命工学研究基礎",2,null,null,null,null,null,null,null,null,null,null,null,null,null,null,null,null,null,null,null,null,null,null,null,null,null,null,null,null,null,null,null,null,null,null,null,null,null,null,null,250224000120,{"$f":"C72","v":"化学生命工学研究基礎"}]
[null,null,"学外実習",1,null,null,null,null,null,null,null,null,null,null,null,null,null,null,null,null,null,null,null,null,null,null,null,null,null,null,null,null,null,null,null,null,null,null,null,null,null,null,null,250224011001,{"$f":"C73","v":"学外実習"}]
["合計",null,null,null,null,{"$f":"SUM(F61:F73)","v":0},null,{"$f":"SUM(H61:H73)","v":0},null,{"$f":"SUM(J61:J73)","v":0},null,{"$f":"SUM(L61:L73)","v":0},null,{"$f":"SUM(N61:N73)","v":0},null,{"$f":"SUM(P61:P73)","v":0},null,{"$f":"SUM(R61:R73)","v":0},null,{"$f":"SUM(T61:T73)","v":0},null,{"$f":"SUM(V61:V73)","v":0},null,{"$f":"SUM(X61:X73)","v":0},null,{"$f":"SUM(Z61:Z73)","v":0},null,{"$f":"SUM(AB61:AB73)","v":0},null,{"$f":"SUM(AD61:AD73)","v":0},null,{"$f":"SUM(AF61:AF73)","v":0},null,{"$f":"SUM(AH61:AH73)","v":0},null,{"$f":"SUM(AJ61:AJ73)","v":0},{"$f":"SUM(E74,G74,I74,K74,M74,O74,Q74,S74,U74,W74,Y74,AA74,AC74,AE74,AG74,AI74)","v":0},14,{"$f":"SUM(F74,H74,J74,L74,N74,P74,R74,T74,V74,X74,Z74,AB74,AD74,AF74,AH74,AJ74)","v":0}]
[]
["専門教育科目合計（単位数とGP）",null,null,null,{"$f":"SUM(E13,E34,E45,E59,E74)","v":0},0,0,0,0,0,0,0,0,0,0,0,0,0,0,0,0,0,0,0,0,0,0,0,0,0,0,0,0,0,0,0,{"$f":"SUM(E76,G76,I76,K76,M76,O76,Q76,S76,U76,W76,Y76,AA76,AC76,AE76,AG76,AI76)","v":0},92,{"$f":"SUM(F76,H76,J76,L76,N76,P76,R76,T76,V76,X76,Z76,AB76,AD76,AF76,AH76,AJ76)","v":0}]
["(共通＋専門)教育科目合計（単位数とGP）",null,null,null,{"$f":"'単位修得状況確認表（共通教育科目，一般学生）'!H23+E76","v":0},{"$f":"'単位修得状況確認表（共通教育科目，一般学生）'!I23+F76","v":0},{"$f":"'単位修得状況確認表（共通教育科目，一般学生）'!J23+G76","v":0},{"$f":"'単位修得状況確認表（共通教育科目，一般学生）'!K23+H76","v":0},{"$f":"'単位修得状況確認表（共通教育科目，一般学生）'!L23+I76","v":0},{"$f":"'単位修得状況確認表（共通教育科目，一般学生）'!M23+J76","v":0},{"$f":"'単位修得状況確認表（共通教育科目，一般学生）'!N23+K76","v":0},{"$f":"'単位修得状況確認表（共通教育科目，一般学生）'!O23+L76","v":0},{"$f":"'単位修得状況確認表（共通教育科目，一般学生）'!P23+M76","v":0},{"$f":"'単位修得状況確認表（共通教育科目，一般学生）'!Q23+N76","v":0},{"$f":"'単位修得状況確認表（共通教育科目，一般学生）'!R23+O76","v":0},{"$f":"'単位修得状況確認表（共通教育科目，一般学生）'!S23+P76","v":0},{"$f":"'単位修得状況確認表（共通教育科目，一般学生）'!T23+Q76","v":0},{"$f":"'単位修得状況確認表（共通教育科目，一般学生）'!U23+R76","v":0},{"$f":"'単位修得状況確認表（共通教育科目，一般学生）'!V23+S76","v":0},{"$f":"'単位修得状況確認表（共通教育科目，一般学生）'!W23+T76","v":0},{"$f":"'単位修得状況確認表（共通教育科目，一般学生）'!X23+U76","v":0},{"$f":"'単位修得状況確認表（共通教育科目，一般学生）'!Y23+V76","v":0},{"$f":"'単位修得状況確認表（共通教育科目，一般学生）'!Z23+W76","v":0},{"$f":"'単位修得状況確認表（共通教育科目，一般学生）'!AA23+X76","v":0},{"$f":"'単位修得状況確認表（共通教育科目，一般学生）'!AB23+Y76","v":0},{"$f":"'単位修得状況確認表（共通教育科目，一般学生）'!AC23+Z76","v":0},{"$f":"'単位修得状況確認表（共通教育科目，一般学生）'!AD23+AA76","v":0},{"$f":"'単位修得状況確認表（共通教育科目，一般学生）'!AE23+AB76","v":0},{"$f":"'単位修得状況確認表（共通教育科目，一般学生）'!AF23+AC76","v":0},{"$f":"'単位修得状況確認表（共通教育科目，一般学生）'!AG23+AD76","v":0},{"$f":"'単位修得状況確認表（共通教育科目，一般学生）'!AH23+AE76","v":0},{"$f":"'単位修得状況確認表（共通教育科目，一般学生）'!AI23+AF76","v":0},{"$f":"'単位修得状況確認表（共通教育科目，一般学生）'!AJ23+AG76","v":0},{"$f":"'単位修得状況確認表（共通教育科目，一般学生）'!AK23+AH76","v":0},{"$f":"'単位修得状況確認表（共通教育科目，一般学生）'!AL23+AI76","v":0},{"$f":"'単位修得状況確認表（共通教育科目，一般学生）'!AM23+AJ76","v":0},{"$f":"SUM(E77,G77,I77,K77,M77,O77,Q77,S77,U77,W77,Y77,AA77,AC77,AE77,AG77,AI77)","v":0},124,{"$f":"SUM(F77,H77,J77,L77,N77,P77,R77,T77,V77,X77,Z77,AB77,AD77,AF77,AH77,AJ77)","v":0}]
["※","「期を増やす」欄により学年を４年間増やすことが可。",null,null,null,null,null,null,null,null,null,null,null,null,null,null,null,null,null,null,null,null,null,null,null,null,null,null,null,null,null,null,null,null,null,null,"累積GPA",null,{"$f":"IF(AK77-AK80>0,AM77/(AK77-AK80-'単位修得状況確認表（共通教育科目，一般学生）'!AN26+AK81+'単位修得状況確認表（共通教育科目，一般学生）'!AN27-AK82-'単位修得状況確認表（共通教育科目，一般学生）'!AN28),\"\")","v":""}]
[]
["①【専門教育科目】評価Pの単位数",null,null,null,null,null,null,null,null,null,null,null,null,null,null,null,null,null,null,null,null,null,null,null,null,null,null,null,null,null,null,null,null,null,null,null,{"$f":"SUM(E80:AJ80)","v":0}]
["②【専門教育科目】不合格（評価F）の単位数",null,null,null,null,null,null,null,null,null,null,null,null,null,null,null,null,null,null,null,null,null,null,null,null,null,null,null,null,null,null,null,null,null,null,null,{"$f":"SUM(E81:AJ81)","v":0}]
["③【専門教育科目】評価F科目の再履修での修得単位数",null,null,null,null,null,null,null,null,null,null,null,null,null,null,null,null,null,null,null,null,null,null,null,null,null,null,null,null,null,null,null,null,null,null,null,{"$f":"SUM(E82:AJ82)","v":0}]

{"sheet":"累積グラフ","index":5,"n_rows":206,"n_cols":7,"rows_kept":206,"cut":false,"hidden":false,"merged":[[3,2,3,3],[3,4,3,5],[34,2,34,3],[34,4,34,5],[65,2,65,3]]}
[]
[null,"共通教育科目（必修科目）"]
[]
[null,null,"初年次教育科目",null,"ｸﾞﾛｰﾊﾞﾙ教育科目"]
[null,null,"取得単位数","累積取得単位数","取得単位数","累積取得単位数"]
[null,"1年前期終了時",{"$f":"SUM('単位修得状況確認表（共通教育科目，一般学生）'!H7:H12)","v":0},{"$f":"SUM(C$6:C6)","v":0},{"$f":"SUM('単位修得状況確認表（共通教育科目，一般学生）'!H13:H14)","v":0},{"$f":"SUM(E$6:E6)","v":0}]
[null,"1年後期終了時",{"$f":"SUM('単位修得状況確認表（共通教育科目，一般学生）'!J7:J12)","v":0},{"$f":"SUM(C$6:C7)","v":0},{"$f":"SUM('単位修得状況確認表（共通教育科目，一般学生）'!J13:J14)","v":0},{"$f":"SUM(E$6:E7)","v":0}]
[null,"2年前期終了時",{"$f":"SUM('単位修得状況確認表（共通教育科目，一般学生）'!L7:L12)","v":0},{"$f":"SUM(C$6:C8)","v":0},{"$f":"SUM('単位修得状況確認表（共通教育科目，一般学生）'!L13:L14)","v":0},{"$f":"SUM(E$6:E8)","v":0}]
[null,"2年後期終了時",{"$f":"SUM('単位修得状況確認表（共通教育科目，一般学生）'!N7:N12)","v":0},{"$f":"SUM(C$6:C9)","v":0},{"$f":"SUM('単位修得状況確認表（共通教育科目，一般学生）'!N13:N14)","v":0},{"$f":"SUM(E$6:E9)","v":0}]
[null,"3年前期終了時",{"$f":"SUM('単位修得状況確認表（共通教育科目，一般学生）'!P7:P12)","v":0},{"$f":"SUM(C$6:C10)","v":0},{"$f":"SUM('単位修得状況確認表（共通教育科目，一般学生）'!P13:P14)","v":0},{"$f":"SUM(E$6:E10)","v":0}]
[null,"3年後期終了時",{"$f":"SUM('単位修得状況確認表（共通教育科目，一般学生）'!R7:R12)","v":0},{"$f":"SUM(C$6:C11)","v":0},{"$f":"SUM('単位修得状況確認表（共通教育科目，一般学生）'!R13:R14)","v":0},{"$f":"SUM(E$6:E11)","v":0}]
[null,"4年前期終了時",{"$f":"SUM('単位修得状況確認表（共通教育科目，一般学生）'!T7:T12)","v":0},{"$f":"SUM(C$6:C12)","v":0},{"$f":"SUM('単位修得状況確認表（共通教育科目，一般学生）'!T13:T14)","v":0},{"$f":"SUM(E$6:E12)","v":0}]
[null,"4年後期終了時",{"$f":"SUM('単位修得状況確認表（共通教育科目，一般学生）'!V7:V12)","v":0},{"$f":"SUM(C$6:C13)","v":0},{"$f":"SUM('単位修得状況確認表（共通教育科目，一般学生）'!V13:V14)","v":0},{"$f":"SUM(E$6:E13)","v":0}]
[]
[]
[]
[]
[]
[]
[]
[]
[]
[]
[]
[]
[]
[]
[]
[]
[]
[]
[]
[null,"共通教育科目（選択必修科目）"]
[]
[null,null,"教養教育科目",null,"教養活用科目"]
[null,null,"取得単位数","累積取得単位数","取得単位数","累積取得単位数"]
[null,"1年前期終了時",{"$f":"SUM('単位修得状況確認表（共通教育科目，一般学生）'!H16:H19)","v":0},{"$f":"SUM(C$37:C37)","v":0},{"$f":"SUM('単位修得状況確認表（共通教育科目，一般学生）'!H20:H21)","v":0},{"$f":"SUM(E$37:E37)","v":0}]
[null,"1年後期終了時",{"$f":"SUM('単位修得状況確認表（共通教育科目，一般学生）'!J16:J19)","v":0},{"$f":"SUM(C$37:C38)","v":0},{"$f":"SUM('単位修得状況確認表（共通教育科目，一般学生）'!J20:J21)","v":0},{"$f":"SUM(E$37:E38)","v":0}]
[null,"2年前期終了時",{"$f":"SUM('単位修得状況確認表（共通教育科目，一般学生）'!L16:L19)","v":0},{"$f":"SUM(C$37:C39)","v":0},{"$f":"SUM('単位修得状況確認表（共通教育科目，一般学生）'!L20:L21)","v":0},{"$f":"SUM(E$37:E39)","v":0}]
[null,"2年後期終了時",{"$f":"SUM('単位修得状況確認表（共通教育科目，一般学生）'!N16:N19)","v":0},{"$f":"SUM(C$37:C40)","v":0},{"$f":"SUM('単位修得状況確認表（共通教育科目，一般学生）'!N20:N21)","v":0},{"$f":"SUM(E$37:E40)","v":0}]
[null,"3年前期終了時",{"$f":"SUM('単位修得状況確認表（共通教育科目，一般学生）'!P16:P19)","v":0},{"$f":"SUM(C$37:C41)","v":0},{"$f":"SUM('単位修得状況確認表（共通教育科目，一般学生）'!P20:P21)","v":0},{"$f":"SUM(E$37:E41)","v":0}]
[null,"3年後期終了時",{"$f":"SUM('単位修得状況確認表（共通教育科目，一般学生）'!R16:R19)","v":0},{"$f":"SUM(C$37:C42)","v":0},{"$f":"SUM('単位修得状況確認表（共通教育科目，一般学生）'!R20:R21)","v":0},{"$f":"SUM(E$37:E42)","v":0}]
[null,"4年前期終了時",{"$f":"SUM('単位修得状況確認表（共通教育科目，一般学生）'!T16:T19)","v":0},{"$f":"SUM(C$37:C43)","v":0},{"$f":"SUM('単位修得状況確認表（共通教育科目，一般学生）'!T20:T21)","v":0},{"$f":"SUM(E$37:E43)","v":0}]
[null,"4年後期終了時",{"$f":"SUM('単位修得状況確認表（共通教育科目，一般学生）'!V16:V19)","v":0},{"$f":"SUM(C$37:C44)","v":0},{"$f":"SUM('単位修得状況確認表（共通教育科目，一般学生）'!V20:V21)","v":0},{"$f":"SUM(E$37:E44)","v":0}]
[]
[]
[]
[]
[]
[]
[]
[]
[]
[]
[]
[]
[]
[]
[]
[]
[]
[]
[]
[null,"専門教育科目（基礎教育科目）"]
[]
[null,null,"必修科目"]
[null,null,"取得単位数","累積取得単位数"]
[null,"1年前期終了時",{"$f":"'単位修得状況確認表（専門教育科目）'!E13","v":0},{"$f":"SUM(C$68:C68)","v":0}]
[null,"1年後期終了時",{"$f":"'単位修得状況確認表（専門教育科目）'!G13","v":0},{"$f":"SUM(C$68:C69)","v":0}]
[null,"2年前期終了時",{"$f":"'単位修得状況確認表（専門教育科目）'!I13","v":0},{"$f":"SUM(C$68:C70)","v":0}]
[null,"2年後期終了時",{"$f":"'単位修得状況確認表（専門教育科目）'!K13","v":0},{"$f":"SUM(C$68:C71)","v":0}]
[null,"3年前期終了時",{"$f":"'単位修得状況確認表（専門教育科目）'!M13","v":0},{"$f":"SUM(C$68:C72)","v":0}]
[null,"3年後期終了時",{"$f":"'単位修得状況確認表（専門教育科目）'!O13","v":0},{"$f":"SUM(C$68:C73)","v":0}]
[null,"4年前期終了時",{"$f":"'単位修得状況確認表（専門教育科目）'!Q13","v":0},{"$f":"SUM(C$68:C74)","v":0}]
[null,"4年後期終了時",{"$f":"'単位修得状況確認表（専門教育科目）'!S13","v":0},{"$f":"SUM(C$68:C75)","v":0}]
[]
[]
[]
[]
[]
[]
[]
[null,"専門教育科目（必修科目）"]
[]
[null,null,"取得単位数","累積取得単位数"]
[null,"1年前期終了時",{"$f":"'単位修得状況確認表（専門教育科目）'!E34","v":0},{"$f":"SUM(C$86:C86)","v":0}]
[null,"1年後期終了時",{"$f":"'単位修得状況確認表（専門教育科目）'!G34","v":0},{"$f":"SUM(C$86:C87)","v":0}]
[null,"2年前期終了時",{"$f":"'単位修得状況確認表（専門教育科目）'!I34","v":0},{"$f":"SUM(C$86:C88)","v":0}]
[null,"2年後期終了時",{"$f":"'単位修得状況確認表（専門教育科目）'!K34","v":0},{"$f":"SUM(C$86:C89)","v":0}]
[null,"3年前期終了時",{"$f":"'単位修得状況確認表（専門教育科目）'!M34","v":0},{"$f":"SUM(C$86:C90)","v":0}]
[null,"3年後期終了時",{"$f":"'単位修得状況確認表（専門教育科目）'!O34","v":0},{"$f":"SUM(C$86:C91)","v":0}]
[null,"4年前期終了時",{"$f":"'単位修得状況確認表（専門教育科目）'!Q34","v":0},{"$f":"SUM(C$86:C92)","v":0}]
[null,"4年後期終了時",{"$f":"'単位修得状況確認表（専門教育科目）'!S34","v":0},{"$f":"SUM(C$86:C93)","v":0}]
[]
[]
[]
[]
[]
[]
[]
[]
[]
[]
[]
[]
[]
[null,"専門教育科目（選択科目A群）"]
[]
[null,null,"取得単位数","累積取得単位数"]
[null,"1年前期終了時",{"$f":"'単位修得状況確認表（専門教育科目）'!E45","v":0},{"$f":"SUM(C$110:C110)","v":0}]
[null,"1年後期終了時",{"$f":"'単位修得状況確認表（専門教育科目）'!G45","v":0},{"$f":"SUM(C$110:C111)","v":0}]
[null,"2年前期終了時",{"$f":"'単位修得状況確認表（専門教育科目）'!I45","v":0},{"$f":"SUM(C$110:C112)","v":0}]
[null,"2年後期終了時",{"$f":"'単位修得状況確認表（専門教育科目）'!K45","v":0},{"$f":"SUM(C$110:C113)","v":0}]
[null,"3年前期終了時",{"$f":"'単位修得状況確認表（専門教育科目）'!M45","v":0},{"$f":"SUM(C$110:C114)","v":0}]
[null,"3年後期終了時",{"$f":"'単位修得状況確認表（専門教育科目）'!O45","v":0},{"$f":"SUM(C$110:C115)","v":0}]
[null,"4年前期終了時",{"$f":"'単位修得状況確認表（専門教育科目）'!Q45","v":0},{"$f":"SUM(C$110:C116)","v":0}]
[null,"4年後期終了時",{"$f":"'単位修得状況確認表（専門教育科目）'!S45","v":0},{"$f":"SUM(C$110:C117)","v":0}]
[]
[]
[]
[]
[]
[]
[]
[null,"専門教育科目（選択科目B群）"]
[]
[null,null,"取得単位数","累積取得単位数"]
[null,"1年前期終了時",{"$f":"'単位修得状況確認表（専門教育科目）'!E59","v":0},{"$f":"SUM(C$128:C128)","v":0}]
[null,"1年後期終了時",{"$f":"'単位修得状況確認表（専門教育科目）'!G59","v":0},{"$f":"SUM(C$128:C129)","v":0}]
[null,"2年前期終了時",{"$f":"'単位修得状況確認表（専門教育科目）'!I59","v":0},{"$f":"SUM(C$128:C130)","v":0}]
[null,"2年後期終了時",{"$f":"'単位修得状況確認表（専門教育科目）'!K59","v":0},{"$f":"SUM(C$128:C131)","v":0}]
[null,"3年前期終了時",{"$f":"'単位修得状況確認表（専門教育科目）'!M59","v":0},{"$f":"SUM(C$128:C132)","v":0}]
[null,"3年後期終了時",{"$f":"'単位修得状況確認表（専門教育科目）'!O59","v":0},{"$f":"SUM(C$128:C133)","v":0}]
[null,"4年前期終了時",{"$f":"'単位修得状況確認表（専門教育科目）'!Q59","v":0},{"$f":"SUM(C$128:C134)","v":0}]
[null,"4年後期終了時",{"$f":"'単位修得状況確認表（専門教育科目）'!S59","v":0},{"$f":"SUM(C$128:C135)","v":0}]
[]
[]
[]
[]
[]
[]
[]
[null,"専門教育科目（選択科目C群）"]
[]
[null,null,"取得単位数","累積取得単位数"]
[null,"1年前期終了時",{"$f":"'単位修得状況確認表（専門教育科目）'!E74","v":0},{"$f":"SUM(C$146:C146)","v":0}]
[null,"1年後期終了時",{"$f":"'単位修得状況確認表（専門教育科目）'!G74","v":0},{"$f":"SUM(C$146:C147)","v":0}]
[null,"2年前期終了時",{"$f":"'単位修得状況確認表（専門教育科目）'!I74","v":0},{"$f":"SUM(C$146:C148)","v":0}]
[null,"2年後期終了時",{"$f":"'単位修得状況確認表（専門教育科目）'!K74","v":0},{"$f":"SUM(C$146:C149)","v":0}]
[null,"3年前期終了時",{"$f":"'単位修得状況確認表（専門教育科目）'!M74","v":0},{"$f":"SUM(C$146:C150)","v":0}]
[null,"3年後期終了時",{"$f":"'単位修得状況確認表（専門教育科目）'!O74","v":0},{"$f":"SUM(C$146:C151)","v":0}]
[null,"4年前期終了時",{"$f":"'単位修得状況確認表（専門教育科目）'!Q74","v":0},{"$f":"SUM(C$146:C152)","v":0}]
[null,"4年後期終了時",{"$f":"'単位修得状況確認表（専門教育科目）'!S74","v":0},{"$f":"SUM(C$146:C153)","v":0}]
[]
[]
[]
[]
[]
[]
[]
[]
[]
[]
[null,"累積単位数"]
[]
[null,null,"取得単位数","累積取得単位数"]
[null,"1年前期終了時",{"$f":"SUM(C6,E6,C37,E37,C68,C86,C110,C128,C146)","v":0},{"$f":"SUM(C$167:C167)","v":0}]
[null,"1年後期終了時",{"$f":"SUM(C7,E7,C38,E38,C69,C87,C111,C129,C147)","v":0},{"$f":"SUM(C$167:C168)","v":0}]
[null,"2年前期終了時",0,{"$f":"SUM(C$167:C169)","v":0}]
[null,"2年後期終了時",0,{"$f":"SUM(C$167:C170)","v":0}]
[null,"3年前期終了時",0,{"$f":"SUM(C$167:C171)","v":0}]
[null,"3年後期終了時",0,{"$f":"SUM(C$167:C172)","v":0}]
[null,"4年前期終了時",0,{"$f":"SUM(C$167:C173)","v":0}]
[null,"4年後期終了時",0,{"$f":"SUM(C$167:C174)","v":0}]
[]
[]
[]
[]
[]
[]
[]
[]
[]
[]
[]
[]
[]
[]
[]
[]
[]
[]
[]
[]
[]
[null,"GPA"]
[]
[null,null,"累積GP","累積GPA","GPA累積単位数","累積P","累積F"]
[null,"1年前期終了時",{"$f":"'単位修得状況確認表（共通教育科目，一般学生）'!I23+'単位修得状況確認表（専門教育科目）'!F76","v":0},{"$f":"IF(E199=0,\"\",C199/E199)","v":""},{"$f":"D167-F199+G199","v":0},{"$f":"'単位修得状況確認表（共通教育科目，一般学生）'!H26+'単位修得状況確認表（専門教育科目）'!E80","v":0},{"$f":"'単位修得状況確認表（共通教育科目，一般学生）'!H27+'単位修得状況確認表（専門教育科目）'!E81-'単位修得状況確認表（共通教育科目，一般学生）'!H28-'単位修得状況確認表（専門教育科目）'!E82","v":0}]
[null,"1年後期終了時",{"$f":"C199+'単位修得状況確認表（共通教育科目，一般学生）'!K23+'単位修得状況確認表（専門教育科目）'!H76","v":0},"",{"$f":"D168-F200+G200","v":0},{"$f":"F199+'単位修得状況確認表（共通教育科目，一般学生）'!J26+'単位修得状況確認表（専門教育科目）'!G80","v":0},{"$f":"G199+'単位修得状況確認表（共通教育科目，一般学生）'!J27+'単位修得状況確認表（専門教育科目）'!G81-'単位修得状況確認表（共通教育科目，一般学生）'!J28-'単位修得状況確認表（専門教育科目）'!G82","v":0}]
[null,"2年前期終了時",{"$f":"C200+'単位修得状況確認表（共通教育科目，一般学生）'!M23+'単位修得状況確認表（専門教育科目）'!J76","v":0},"",{"$f":"D169-F201+G201","v":0},{"$f":"F200+'単位修得状況確認表（共通教育科目，一般学生）'!L26+'単位修得状況確認表（専門教育科目）'!I80","v":0},{"$f":"G200+'単位修得状況確認表（共通教育科目，一般学生）'!L27+'単位修得状況確認表（専門教育科目）'!I81-'単位修得状況確認表（共通教育科目，一般学生）'!L28-'単位修得状況確認表（専門教育科目）'!I82","v":0}]
[null,"2年後期終了時",{"$f":"C201+'単位修得状況確認表（共通教育科目，一般学生）'!O23+'単位修得状況確認表（専門教育科目）'!L76","v":0},"",0,{"$f":"F201+'単位修得状況確認表（共通教育科目，一般学生）'!N26+'単位修得状況確認表（専門教育科目）'!K80","v":0},{"$f":"G201+'単位修得状況確認表（共通教育科目，一般学生）'!N27+'単位修得状況確認表（専門教育科目）'!K81-'単位修得状況確認表（共通教育科目，一般学生）'!N28-'単位修得状況確認表（専門教育科目）'!K82","v":0}]
[null,"3年前期終了時",{"$f":"C202+'単位修得状況確認表（共通教育科目，一般学生）'!Q23+'単位修得状況確認表（専門教育科目）'!N76","v":0},"",0,{"$f":"F202+'単位修得状況確認表（共通教育科目，一般学生）'!P26+'単位修得状況確認表（専門教育科目）'!M80","v":0},{"$f":"G202+'単位修得状況確認表（共通教育科目，一般学生）'!P27+'単位修得状況確認表（専門教育科目）'!M81-'単位修得状況確認表（共通教育科目，一般学生）'!P28-'単位修得状況確認表（専門教育科目）'!M82","v":0}]
[null,"3年後期終了時",{"$f":"C203+'単位修得状況確認表（共通教育科目，一般学生）'!S23+'単位修得状況確認表（専門教育科目）'!P76","v":0},"",0,{"$f":"F203+'単位修得状況確認表（共通教育科目，一般学生）'!R26+'単位修得状況確認表（専門教育科目）'!O80","v":0},{"$f":"G203+'単位修得状況確認表（共通教育科目，一般学生）'!R27+'単位修得状況確認表（専門教育科目）'!O81-'単位修得状況確認表（共通教育科目，一般学生）'!R28-'単位修得状況確認表（専門教育科目）'!O82","v":0}]
[null,"4年前期終了時",{"$f":"C204+'単位修得状況確認表（共通教育科目，一般学生）'!U23+'単位修得状況確認表（専門教育科目）'!R76","v":0},"",0,{"$f":"F204+'単位修得状況確認表（共通教育科目，一般学生）'!T26+'単位修得状況確認表（専門教育科目）'!Q80","v":0},{"$f":"G204+'単位修得状況確認表（共通教育科目，一般学生）'!T27+'単位修得状況確認表（専門教育科目）'!Q81-'単位修得状況確認表（共通教育科目，一般学生）'!T28-'単位修得状況確認表（専門教育科目）'!Q82","v":0}]
[null,"4年後期終了時",{"$f":"C205+'単位修得状況確認表（共通教育科目，一般学生）'!W23+'単位修得状況確認表（専門教育科目）'!T76","v":0},"",0,{"$f":"F205+'単位修得状況確認表（共通教育科目，一般学生）'!V26+'単位修得状況確認表（専門教育科目）'!S80","v":0},{"$f":"G205+'単位修得状況確認表（共通教育科目，一般学生）'!V27+'単位修得状況確認表（専門教育科目）'!S81-'単位修得状況確認表（共通教育科目，一般学生）'!V28-'単位修得状況確認表（専門教育科目）'!S82","v":0}]